bitfinex/quotes_SOLUSD_20250422
["timestamp","ask_amount","ask_price","bid_price","bid_amount"]
[1745331187469,23.03924474,143.78,143.72,81.4191227]
[1745331187648,16.08404877,143.77,143.72,97.50317147]
[1745331187847,23.03924474,143.78,143.73,16.08404877]
[1745331188058,16.08404877,143.77,143.72,97.50317147]
[1745331188250,16.08404877,143.75,143.72,81.4191227]
[1745331188465,16.08404877,143.75,143.7,42.08404877]
[1745331188764,23.04074169,143.75,143.7,16.08404877]
[1745331189354,16.08404877,143.73,143.69,81.4191227]
[1745331189561,16.08404877,143.7,143.68,0.063]
[1745331190051,16.08404877,143.69,143.68,0.063]
[1745331190454,17.74294877,143.69,143.68,0.063]
[1745331191094,24.70237531,143.69,143.68,0.063]
[1745331191659,1.6589,143.69,143.68,0.063]
[1745331191866,24.1789,143.73,143.68,16.14704877]
[1745331192050,17.66,143.73,143.72,16.08404877]
[1745331192563,18.2367872,143.73,143.7,16.08404877]
[1745331192877,18.2367872,143.73,143.68,81.4821227]
[1745331193068,18.2367872,143.73,143.69,16.08404877]
[1745331193394,16.08404877,143.7,143.68,0.063]
[1745331193679,16.08404877,143.69,143.68,0.063]
[1745331195064,6.038,143.7,143.68,0.063]
[1745331195264,16.08404877,143.69,143.68,0.063]
[1745331195474,23.04347531,143.69,143.68,0.063]
[1745331197286,23.07728688,143.69,143.68,0.063]
[1745331197463,32.74803477,143.69,143.68,0.063]
[1745331198556,83.0,143.68,143.61,0.063]
[1745331198777,25.78860823,143.62,143.61,0.063]
[1745331199682,32.75142677,143.62,143.61,0.063]
[1745331200673,25.78860823,143.62,143.61,0.063]
[1745331200974,32.75142677,143.62,143.61,0.063]
[1745331202664,32.75142677,143.62,143.61,1e-08]
[1745331202665,34.41032677,143.62,143.61,1e-08]
[1745331202981,51.81737314,143.62,143.59,0.063]
[1745331203179,25.78860823,143.6,143.59,0.063]
[1745331203596,32.75239653,143.6,143.59,0.063]
[1745331204881,58.75239653,143.6,143.59,1e-08]
[1745331205074,58.75239653,143.6,143.55,0.063]
[1745331205075,77.16186728,143.6,143.55,0.063]
[1745331205276,25.78860823,143.56,143.55,0.063]
[1745331205789,32.75433684,143.56,143.55,0.063]
[1745331208471,6.96543723,143.57,143.55,0.063]
[1745331208674,25.78860823,143.56,143.55,0.063]
[1745331209169,83.0,143.66,143.55,25.85160823]
[1745331209386,25.78860823,143.64,143.59,25.78860823]
[1745331209693,25.78860823,143.63,143.58,25.78860823]
[1745331209882,25.78860823,143.62,143.57,25.78860823]
[1745331210268,32.75141023,143.63,143.58,25.78860823]
[1745331210469,25.78860823,143.63,143.58,25.78860823]
[1745331210771,32.75095317,143.63,143.58,25.78860823]
[1745331211073,25.78860823,143.63,143.58,25.78860823]
[1745331211275,43.46860823,143.65,143.6,25.78860823]
[1745331211469,25.78860823,143.64,143.6,25.78860823]
[1745331211689,43.46860823,143.65,143.6,25.78860823]
[1745331212077,25.78860823,143.63,143.59,25.78860823]
[1745331212479,25.78860823,143.63,143.58,81.4191227]
[1745331212887,25.78860823,143.62,143.58,81.4191227]
[1745331213096,25.78860823,143.62,143.58,107.20773093]
[1745331213297,25.78860823,143.63,143.58,81.4191227]
[1745331213475,25.78860823,143.62,143.58,107.20773093]
[1745331214097,25.78860823,143.63,143.59,25.78860823]
[1745331214280,32.75061122,143.64,143.59,25.78860823]
[1745331214996,25.78860823,143.61,143.58,81.4191227]
[1745331215304,25.78860823,143.61,143.56,25.78860823]
[1745331215500,25.78860823,143.6,143.55,81.4821227]
[1745331215799,25.78860823,143.57,143.55,0.063]
[1745331216103,25.78860823,143.56,143.55,0.063]
[1745331216694,25.78860823,143.57,143.55,0.063]
[1745331216978,25.78860823,143.56,143.55,0.063]
[1745331217503,25.78860823,143.57,143.55,0.063]
[1745331217876,25.78860823,143.56,143.55,0.063]
[1745331218294,32.75433684,143.56,143.55,0.063]
[1745331218493,25.78860823,143.56,143.55,0.063]
[1745331220305,17.68,143.59,143.55,0.063]
[1745331220306,24.64439834,143.59,143.55,0.063]
[1745331220492,25.78860823,143.58,143.55,0.063]
[1745331220691,24.64439834,143.59,143.55,0.063]
[1745331220902,25.78860823,143.56,143.55,0.063]
[1745331222211,25.78860823,143.57,143.55,0.063]
[1745331222911,25.78860823,143.58,143.55,0.063]
[1745331223210,17.68,143.59,143.55,0.063]
[1745331223518,17.68,143.59,143.57,25.78860823]
[1745331225084,17.68,143.59,143.56,25.78860823]
[1745331225612,17.68,143.59,143.57,25.78860823]
[1745331225995,17.68,143.59,143.56,25.78860823]
[1745331226320,25.78860823,143.57,143.55,0.063]
[1745331227323,25.78860823,143.56,143.55,0.063]
[1745331228700,25.78860823,143.57,143.55,0.063]
[1745331229024,43.46860823,143.59,143.55,0.063]
[1745331229588,25.78860823,143.58,143.55,0.063]
[1745331230707,25.78860823,143.56,143.55,0.063]
[1745331232094,32.75433684,143.56,143.55,0.063]
[1745331232311,51.78860823,143.56,143.55,0.063]
[1745331232623,70.43825709,143.56,143.49,0.063]
[1745331232916,25.78860823,143.5,143.49,0.063]
[1745331233209,43.42860823,143.5,143.49,0.063]
[1745331234105,17.64,143.5,143.49,0.063]
[1745331234684,17.64,143.5,143.49,25.85160823]
[1745331235618,17.64,143.5,143.49,44.50125709]
[1745331236596,17.64,143.5,143.49,18.71264886]
[1745331236797,17.64,143.5,143.49,44.50125709]
[1745331241613,17.64,143.55,143.52,26.0]
[1745331241793,17.64,143.55,143.53,25.78860823]
[1745331241991,17.64,143.55,143.54,44.43825709]
[1745331242193,238.88,143.6,143.54,44.43825709]
[1745331242397,238.88,143.6,143.56,25.78860823]
[1745331242992,238.88,143.6,143.57,25.78860823]
[1745331243606,238.88,143.6,143.56,25.78860823]
[1745331244598,238.88,143.6,143.57,44.43825709]
[1745331244906,238.88,143.6,143.58,25.78860823]
[1745331245498,238.88,143.6,143.57,25.78860823]
[1745331246003,238.88,143.6,143.58,25.78860823]
[1745331246205,17.64,143.61,143.58,25.78860823]
[1745331246400,17.64,143.61,143.57,25.78860823]
[1745331246600,43.42860823,143.61,143.57,25.78860823]
[1745331247424,1.5537,143.65,143.6,44.43825709]
[1745331247425,0.03,143.65,143.6,44.43825709]
[1745331247633,0.03,143.65,143.58,18.64964886]
[1745331247807,0.03,143.65,143.62,18.64964886]
[1745331248018,0.03,143.65,143.62,44.43825709]
[1745331248206,0.03,143.65,143.62,18.64964886]
[1745331248408,25.81860823,143.65,143.61,25.78860823]
[1745331248602,25.81860823,143.65,143.61,18.64964886]
[1745331248806,0.03,143.65,143.61,44.43825709]
[1745331249040,0.03,143.65,143.64,44.43825709]
[1745331249501,0.03,143.65,143.64,26.0]
[1745331249837,0.03,143.65,143.64,70.43825709]
[1745331251323,0.03,143.65,143.64,44.64964886]
[1745331252231,0.03,143.65,143.64,70.43825709]
[1745331253112,0.03,143.65,143.64,77.40010615]
[1745331254718,0.03,143.65,143.64,158.81922885]
[1745331255036,0.03,143.65,143.64,160.40092885]
[1745331255403,0.03,143.65,143.64,167.00552885]
[1745331255610,0.03,143.78,143.68,44.64964886]
[1745331255803,0.03,143.78,143.73,51.78860823]
[1745331256109,25.78860823,143.77,143.73,151.85737979]
[1745331256510,25.81860823,143.78,143.73,151.85737979]
[1745331256911,0.03,143.78,143.73,151.85737979]
[1745331257140,0.03,143.78,143.73,133.20773093]
[1745331257337,0.03,143.78,143.73,151.85737979]
[1745331257502,25.81860823,143.74,143.66,98.8212409]
[1745331257704,0.03,143.74,143.7,44.43825709]
[1745331257904,0.03,143.74,143.71,25.78860823]
[1745331258136,0.03,143.74,143.72,25.78860823]
[1745331258708,0.03,143.74,143.71,25.78860823]
[1745331259922,0.03,143.74,143.7,44.43825709]
[1745331260436,0.03,143.74,143.71,25.78860823]
[1745331262243,43.39860823,143.74,143.7,18.64964886]
[1745331262421,17.61,143.74,143.71,25.78860823]
[1745331262822,17.61,143.74,143.7,51.78860823]
[1745331263450,43.39860823,143.74,143.7,51.78860823]
[1745331263752,17.61,143.74,143.7,51.78860823]
[1745331264822,17.61,143.74,143.72,25.78860823]
[1745331266049,17.61,143.74,143.71,44.43825709]
[1745331266432,17.61,143.74,143.72,25.78860823]
[1745331269361,17.61,143.74,143.73,25.78860823]
[1745331270963,0.03,143.74,143.71,18.64964886]
[1745331271259,0.03,143.74,143.73,25.78860823]
[1745331271857,0.03,143.74,143.72,25.78860823]
[1745331272235,0.03,143.74,143.73,25.78860823]
[1745331273142,0.03,143.74,143.73,70.43825709]
[1745331273751,0.03,143.74,143.73,151.85737979]
[1745331273957,0.03,143.74,143.73,158.81486952]
[1745331277251,0.03,143.74,143.73,159.00264514]
[1745331278761,0.03,143.74,143.73,152.04515541]
[1745331279136,0.03,143.74,143.72,25.97638385]
[1745331279340,0.03,143.74,143.73,25.97638385]
[1745331279542,0.03,143.74,143.73,16.23964669]
[1745331279749,0.03,143.78,143.76,26.0]
[1745331279939,0.03,143.78,143.77,18.64964886]
[1745331280143,0.03,143.78,143.77,34.88929555]
[1745331280552,0.03,143.8,143.79,18.64964886]
[1745331280760,0.03,143.8,143.79,100.06877156]
[1745331280962,0.03,143.8,143.79,116.30841825]
[1745331281160,0.03,143.8,143.79,121.98119765]
[1745331281339,0.03,143.8,143.79,116.30841825]
[1745331282366,0.03,143.83,143.79,116.30841825]
[1745331282557,0.03,143.83,143.82,26.0]
[1745331282738,0.03,143.83,143.82,123.65876939]
[1745331283068,0.03,143.85,143.83,44.64964886]
[1745331283233,19.1961,143.91,143.83,44.64964886]
[1745331283434,19.1961,143.91,143.85,18.64964886]
[1745331283633,35.43574669,143.91,143.86,34.88929555]
[1745331283866,19.1961,143.91,143.86,34.88929555]
[1745331284049,35.43574669,143.91,143.84,18.64964886]
[1745331284250,16.23964669,143.88,143.83,81.4191227]
[1745331284453,26.14499263,143.91,143.8,18.64964886]
[1745331284634,26.14499263,143.91,143.82,16.23964669]
[1745331284836,16.23964669,143.87,143.82,16.23964669]
[1745331285354,43.51696122,143.91,143.8,44.64964886]
[1745331285653,16.23964669,143.87,143.82,16.23964669]
[1745331286042,26.14499263,143.91,143.85,16.23964669]
[1745331286251,16.23964669,143.88,143.84,16.23964669]
[1745331286448,16.23964669,143.88,143.83,16.23964669]
[1745331286660,16.23964669,143.88,143.84,16.23964669]
[1745331286865,26.14499263,143.91,143.84,16.23964669]
[1745331287243,16.23964669,143.87,143.83,16.23964669]
[1745331287547,26.14499263,143.91,143.84,16.23964669]
[1745331287749,16.23964669,143.89,143.84,16.23964669]
[1745331287945,26.14499263,143.91,143.84,16.23964669]
[1745331288140,19.1961,143.91,143.84,81.4191227]
[1745331288342,26.14514757,143.91,143.84,97.65876939]
[1745331288864,16.23964669,143.9,143.86,16.23964669]
[1745331289066,19.1961,143.91,143.86,16.23964669]
[1745331289368,35.43574669,143.91,143.86,16.23964669]
[1745331289551,35.43574669,143.91,143.87,16.23964669]
[1745331289870,19.1961,143.91,143.87,16.23964669]
[1745331290040,35.43574669,143.91,143.87,16.23964669]
[1745331290241,35.43574669,143.91,143.84,81.4191227]
[1745331290242,16.23964669,143.9,143.84,81.4191227]
[1745331290465,16.23964669,143.89,143.85,16.23964669]
[1745331290957,16.23964669,143.9,143.86,16.23964669]
[1745331291164,19.1961,143.91,143.86,16.23964669]
[1745331291463,16.23964669,143.87,143.8,81.4191227]
[1745331291641,26.14504933,143.91,143.83,16.23964669]
[1745331291842,16.23964669,143.89,143.84,16.23964669]
[1745331292051,19.1961,143.91,143.84,16.23964669]
[1745331292052,16.23964669,143.9,143.85,16.23964669]
[1745331292464,16.23964669,143.89,143.84,97.65876939]
[1745331292759,16.23964669,143.9,143.85,16.23964669]
[1745331292956,40.72854472,143.91,143.86,16.23964669]
[1745331293264,17.54,143.91,143.87,16.23964669]
[1745331293858,33.77964669,143.91,143.87,16.23964669]
[1745331294354,17.54,143.91,143.86,18.64964886]
[1745331294541,17.54,143.91,143.88,16.23964669]
[1745331294753,17.54,143.91,143.9,16.23964669]
[1745331295141,17.54,143.91,143.89,16.23964669]
[1745331296160,17.54,143.91,143.88,16.23964669]
[1745331296471,17.54,143.91,143.9,16.23964669]
[1745331297066,17.54,143.91,143.88,16.23964669]
[1745331297375,17.54,143.91,143.89,16.23964669]
[1745331299749,17.54,143.91,143.9,16.23964669]
[1745331300273,17.54,143.91,143.86,100.06877156]
[1745331300446,17.54,143.91,143.89,16.23964669]
[1745331300647,17.54,143.91,143.9,16.23964669]
[1745331302088,17.54,143.96,143.92,18.64964886]
[1745331302260,17.54,143.96,143.94,16.23964669]
[1745331302461,17.54,143.96,143.95,16.23964669]
[1745331302668,17.54,143.96,143.91,26.0]
[1745331302865,17.54,143.96,143.9,82.9831227]
[1745331302866,17.54,143.96,143.92,16.23964669]
[1745331303077,17.54,143.96,143.91,16.23964669]
[1745331303389,16.23964669,143.96,143.91,81.4191227]
[1745331303563,16.23964669,143.96,143.92,16.23964669]
[1745331303763,1.1216597,143.97,143.94,16.23964669]
[1745331303957,1.1216597,143.97,143.86,81.4191227]
[1745331303958,16.23964669,143.96,143.86,81.4191227]
[1745331304157,6.94733916,143.94,143.86,81.4191227]
[1745331304381,32.94733916,143.94,143.82,7.6774]
[1745331304595,16.23964669,143.89,143.85,16.23964669]
[1745331304775,33.75964669,143.88,143.79,90.49190992]
[1745331304976,33.75964669,143.88,143.79,81.4191227]
[1745331304977,16.23964669,143.84,143.79,81.4191227]
[1745331305190,16.23964669,143.82,143.77,16.23964669]
[1745331305499,17.52,143.81,143.74,7.6774]
[1745331305681,43.49870308,143.81,143.76,25.97870308]
[1745331305985,17.52,143.81,143.76,25.97870308]
[1745331306159,17.52,143.81,143.74,26.0]
[1745331306363,17.52,143.81,143.77,25.97870308]
[1745331306782,17.52,143.81,143.78,25.97870308]
[1745331306990,17.52,143.81,143.79,25.97870308]
[1745331307383,17.52,143.81,143.78,25.97870308]
[1745331307586,17.52,143.81,143.77,18.64964886]
[1745331307897,17.52,143.81,143.78,25.97870308]
[1745331308068,17.52,143.81,143.76,44.64964886]
[1745331308264,25.97870308,143.8,143.76,25.97870308]
[1745331308588,25.97870308,143.8,143.74,18.64964886]
[1745331308795,17.52,143.81,143.78,25.97870308]
[1745331309587,17.52,143.81,143.8,25.97870308]
[1745331309770,17.52,143.81,143.74,48.07553939]
[1745331310091,17.52,143.81,143.78,25.97870308]
[1745331310596,24.47376383,143.81,143.74,44.64964886]
[1745331310769,25.97870308,143.8,143.73,81.4191227]
[1745331310970,25.97870308,143.78,143.73,81.4191227]
[1745331311485,25.97870308,143.8,143.75,25.97870308]
[1745331311877,50.45246691,143.81,143.76,25.97870308]
[1745331312580,24.47376383,143.81,143.76,25.97870308]
[1745331312892,25.97870308,143.79,143.75,25.97870308]
[1745331313065,25.97870308,143.77,143.73,81.4191227]
[1745331313265,25.97870308,143.74,143.68,81.4191227]
[1745331313588,17.5,143.73,143.69,25.97870308]
[1745331314091,17.5,143.73,143.7,25.97870308]
[1745331314593,17.5,143.8,143.73,18.64964886]
[1745331314770,17.5,143.8,143.76,25.97870308]
[1745331314965,43.47870308,143.8,143.75,25.97870308]
[1745331315368,25.97870308,143.76,143.67,81.4821227]
[1745331315589,25.97870308,143.72,143.67,81.4821227]
[1745331315787,17.52,143.73,143.67,107.46082578]
[1745331315966,25.97870308,143.72,143.67,107.46082578]
[1745331316469,43.49870308,143.73,143.68,25.97870308]
[1745331316894,43.49870308,143.73,143.67,81.4821227]
[1745331316895,17.52,143.73,143.69,25.97870308]
[1745331317074,17.52,143.73,143.7,25.97870308]
[1745331317393,17.52,143.73,143.72,25.97870308]
[1745331317570,17.52,143.73,143.7,26.0]
[1745331317980,17.52,143.73,143.7,51.97870308]
[1745331318184,17.52,143.73,143.72,25.97870308]
[1745331318384,17.52,143.73,143.72,126.04747464]
[1745331318583,17.52,143.73,143.72,133.00544847]
[1745331318893,17.52,143.73,143.72,126.04747464]
[1745331319803,240.0653,143.82,143.73,44.64964886]
[1745331320101,17.52,143.81,143.79,25.97870308]
[1745331321282,17.52,143.81,143.75,32.95637917]
[1745331321505,17.52,143.81,143.78,25.97870308]
[1745331321709,17.52,143.81,143.79,25.97870308]
[1745331322001,17.52,143.81,143.76,18.64964886]
[1745331322201,17.52,143.81,143.79,25.97870308]
[1745331322374,25.97870308,143.8,143.75,107.4191227]
[1745331322574,25.97870308,143.79,143.75,107.39782578]
[1745331322789,17.52,143.81,143.75,81.4191227]
[1745331322997,25.97870308,143.8,143.75,107.39782578]
[1745331323208,25.97870308,143.78,143.73,26.0]
[1745331323501,17.52,143.81,143.76,25.97870308]
[1745331323706,17.52,143.81,143.73,6.95744764]
[1745331323707,17.52,143.81,143.78,25.97870308]
[1745331324093,17.52,143.81,143.79,25.97870308]
[1745331324291,17.52,143.81,143.78,25.97870308]
[1745331324709,17.52,143.81,143.73,114.37657034]
[1745331324710,17.52,143.81,143.8,25.97870308]
[1745331325606,17.52,143.81,143.8,44.62835194]
[1745331326398,17.52,143.81,143.79,18.64964886]
[1745331326589,17.52,143.81,143.8,25.97870308]
[1745331327193,17.52,143.81,143.79,25.97870308]
[1745331327391,17.52,143.81,143.77,100.06877156]
[1745331327601,17.52,143.81,143.8,25.97870308]
[1745331329302,17.52,143.81,143.79,25.97870308]
[1745331331503,17.52,143.81,143.8,25.97870308]
[1745331332007,17.52,143.81,143.79,25.97870308]
[1745331332716,17.52,143.81,143.77,81.4191227]
[1745331332717,17.52,143.81,143.78,25.97870308]
[1745331333495,17.52,143.81,143.79,25.97870308]
[1745331334318,24.47372091,143.81,143.79,25.97870308]
[1745331334819,17.52,143.81,143.79,25.97870308]
[1745331335493,24.47366545,143.81,143.77,81.4191227]
[1745331335694,24.47366545,143.81,143.77,107.39782578]
[1745331335896,24.47366545,143.81,143.78,25.97870308]
[1745331336387,17.52,143.81,143.79,25.97870308]
[1745331336703,24.47365767,143.81,143.78,25.97870308]
[1745331337006,17.52,143.81,143.78,25.97870308]
[1745331337208,17.52,143.81,143.77,81.4191227]
[1745331337420,17.52,143.81,143.77,97.65442862]
[1745331337712,33.75530592,143.81,143.77,81.4191227]
[1745331337917,16.23530592,143.79,143.73,18.64964886]
[1745331338099,16.23530592,143.79,143.73,100.06877156]
[1745331338297,16.23530592,143.79,143.74,16.23530592]
[1745331338503,22.26690592,143.8,143.75,16.23530592]
[1745331338705,22.26690592,143.8,143.73,81.4821227]
[1745331338912,22.26690592,143.8,143.75,16.23530592]
[1745331339219,33.75530592,143.81,143.76,16.23530592]
[1745331339416,16.23530592,143.79,143.73,100.13177156]
[1745331339618,16.23530592,143.79,143.74,16.23530592]
[1745331339998,17.52,143.81,143.76,16.23530592]
[1745331340198,17.52,143.81,143.77,16.23530592]
[1745331340594,33.75530592,143.81,143.76,16.23530592]
[1745331340823,33.75530592,143.81,143.73,107.08918302]
[1745331341221,33.75530592,143.81,143.73,100.13177156]
[1745331341408,16.23530592,143.8,143.76,16.23530592]
[1745331341605,16.23530592,143.79,143.73,81.4821227]
[1745331341928,16.23530592,143.78,143.73,81.4821227]
[1745331342100,16.23530592,143.77,143.73,81.4821227]
[1745331342300,6.1622,143.78,143.73,81.4821227]
[1745331342605,16.23530592,143.77,143.73,97.71742862]
[1745331342813,6.1622,143.78,143.73,81.4821227]
[1745331343008,16.23530592,143.76,143.73,81.4821227]
[1745331343307,16.23530592,143.75,143.73,0.063]
[1745331343629,16.23530592,143.74,143.73,0.063]
[1745331344321,17.5,143.75,143.73,0.063]
[1745331344498,16.23530592,143.74,143.73,0.063]
[1745331345422,17.5,143.75,143.73,0.063]
[1745331345637,17.5,143.75,143.74,16.23530592]
[1745331346220,17.5,143.75,143.71,26.0]
[1745331346531,17.5,143.75,143.74,16.23530592]
[1745331346915,17.5,143.75,143.74,112.50489744]
[1745331347120,17.5,143.8,143.75,6.95652173]
[1745331347321,17.5,143.8,143.79,16.23530592]
[1745331349425,17.5,143.8,143.79,25.96791179]
[1745331349624,17.5,143.8,143.76,103.22541581]
[1745331349837,17.5,143.8,143.79,25.96791179]
[1745331351143,17.5,143.85,143.8,18.64964886]
[1745331351318,17.5,143.85,143.8,77.61994266]
[1745331351519,17.5,143.85,143.81,18.64964886]
[1745331351750,17.5,143.85,143.84,25.96791179]
[1745331352751,17.5,143.85,143.81,77.61994266]
[1745331352939,17.5,143.85,143.83,25.96791179]
[1745331353830,17.5,143.85,143.84,25.96791179]
[1745331354127,17.5,143.85,143.84,44.61756065]
[1745331354558,17.5,143.85,143.84,122.23750331]
[1745331354730,238.48,143.88,143.85,18.64964886]
[1745331355057,238.48,143.88,143.85,96.26959152]
[1745331355352,238.48,143.88,143.87,25.96791179]
[1745331355646,17.5,143.9,143.86,6.95093717]
[1745331355835,17.5,143.9,143.87,25.96791179]
[1745331356047,17.5,143.9,143.88,25.96791179]
[1745331356249,17.5,143.9,143.89,25.96791179]
[1745331356461,0.03,143.91,143.9,18.64964886]
[1745331356619,0.03,143.91,143.9,44.61756065]
[1745331356935,0.03,143.91,143.9,25.96791179]
[1745331357125,0.03,143.91,143.9,122.23750331]
[1745331357325,0.03,143.91,143.9,129.18677363]
[1745331357525,0.03,143.91,143.9,155.15468542]
[1745331357720,0.03,143.95,143.94,44.64964886]
[1745331357947,16.048838,144.0,143.96,18.64964886]
[1745331358130,16.048838,144.0,143.99,96.58547244]
[1745331358131,1e-08,144.0,143.99,96.58547244]
[1745331358329,13.01104426,144.12,144.02,67.72]
[1745331358528,13.01104426,144.12,144.06,25.96791179]
[1745331358734,13.01104426,144.12,144.09,25.96791179]
[1745331359333,38.97895605,144.12,144.06,103.61994266]
[1745331359540,13.01104426,144.12,144.06,77.61994266]
[1745331359733,25.96791179,144.09,144.02,77.61994266]
[1745331359928,25.96791179,144.07,144.02,77.61994266]
[1745331360251,17.48,144.08,144.05,25.96791179]
[1745331360443,17.48,144.08,144.03,18.64964886]
[1745331360640,17.48,144.08,144.05,25.96791179]
[1745331360949,17.48,144.08,144.04,25.96791179]
[1745331361141,17.48,144.08,144.02,77.61994266]
[1745331361341,25.96791179,144.06,144.02,77.61994266]
[1745331361541,24.42076132,144.08,144.03,25.96791179]
[1745331361742,17.48,144.08,144.02,77.61994266]
[1745331361937,25.96791179,144.07,144.02,103.58785445]
[1745331362453,17.48,144.08,144.04,25.96791179]
[1745331363023,17.48,144.08,144.02,77.61994266]
[1745331363024,17.48,144.08,144.05,25.96791179]
[1745331363253,17.48,144.08,144.04,25.96791179]
[1745331364127,17.48,144.08,144.05,25.96791179]
[1745331364743,17.48,144.08,144.04,25.96791179]
[1745331364958,50.38854543,144.08,144.02,77.61994266]
[1745331365161,50.38854543,144.08,144.03,25.96791179]
[1745331365451,17.48,144.08,144.07,25.96791179]
[1745331365632,17.48,144.08,144.07,103.58785445]
[1745331366055,17.48,144.08,144.07,77.61994266]
[1745331366267,17.48,144.08,144.07,25.96791179]
[1745331366630,240.56583179,144.12,144.07,103.58785445]
[1745331366844,25.96791179,144.11,144.07,77.61994266]
[1745331367240,247.50470039,144.12,144.07,103.58785445]
[1745331367557,25.96791179,144.11,144.07,77.61994266]
[1745331368059,273.47261218,144.12,144.07,103.58785445]
[1745331368938,240.56583179,144.12,144.1,25.96791179]
[1745331369142,2.26583179,144.12,144.11,25.96791179]
[1745331369343,0.03,144.14,144.13,26.0]
[1745331369639,0.03,144.14,144.13,103.58785445]
[1745331370041,32.93561874,144.14,144.08,103.61994266]
[1745331370443,0.03,144.14,144.11,25.96791179]
[1745331370651,0.03,144.14,144.13,25.96791179]
[1745331371343,0.03,144.14,144.13,103.58785445]
[1745331371936,6.96356289,144.23,144.16,26.0]
[1745331372147,0.03,144.23,144.21,25.96791179]
[1745331372739,0.03,144.23,144.22,25.96791179]
[1745331373135,0.03,144.23,144.22,148.23750331]
[1745331373347,1.1216597,144.25,144.24,44.64964886]
[1745331373550,1.1216597,144.25,144.24,148.23750331]
[1745331374835,1e-08,144.25,144.24,148.23750331]
[1745331375255,17.44,144.31,144.28,26.0]
[1745331375460,17.44,144.31,144.3,25.96791179]
[1745331375764,2.0,144.32,144.3,103.58785445]
[1745331375942,2.0,144.32,144.3,77.61994266]
[1745331376145,27.96791179,144.32,144.3,77.61994266]
[1745331376347,2.0,144.32,144.26,77.61994266]
[1745331376557,17.42,144.31,144.29,25.96791179]
[1745331376741,2.0,144.32,144.3,25.96791179]
[1745331377451,19.42,144.32,144.3,25.96791179]
[1745331377660,2.0,144.32,144.31,25.96791179]
[1745331377867,2.0,144.32,144.29,25.96791179]
[1745331378268,2.0,144.32,144.31,44.61756065]
[1745331378654,2.0,144.32,144.31,122.23750331]
[1745331379050,17.42,144.4,144.35,44.64964886]
[1745331379260,17.42,144.4,144.39,25.96791179]
[1745331379667,17.30198555,144.5,144.4,18.64964886]
[1745331379864,17.42,144.44,144.43,25.96791179]
[1745331380379,17.42,144.48,144.42,18.64964886]
[1745331380546,17.42,144.48,144.44,70.61756065]
[1745331380750,32.88730599,144.53,144.44,148.23750331]
[1745331380971,17.42,144.49,144.44,148.23750331]
[1745331381186,238.9416597,144.54,144.47,26.0]
[1745331381346,17.42,144.53,144.48,57.64515698]
[1745331381550,17.42,144.52,144.48,96.26959152]
[1745331381778,17.42,144.52,144.51,38.99550812]
[1745331381974,56.41550812,144.52,144.48,77.61994266]
[1745331382281,17.42,144.53,144.51,38.99550812]
[1745331382450,17.42,144.53,144.52,57.64515698]
[1745331382650,238.9416597,144.54,144.52,38.99550812]
[1745331382871,238.9416597,144.54,144.53,38.99550812]
[1745331383068,256.3616597,144.54,144.5,26.0]
[1745331383455,256.3616597,144.54,144.53,38.99550812]
[1745331383657,256.3616597,144.54,144.53,83.64515698]
[1745331383861,238.9416597,144.54,144.53,57.64515698]
[1745331384170,238.9416597,144.54,144.53,18.64964886]
[1745331384347,1.1216597,144.54,144.53,57.64515698]
[1745331384969,3.78149441,144.59,144.52,26.0]
[1745331385161,17.4,144.58,144.53,18.64964886]
[1745331385459,38.99550812,144.56,144.46,77.61994266]
[1745331385661,38.99550812,144.51,144.47,38.99550812]
[1745331385956,56.39550812,144.5,144.45,38.99550812]
[1745331386163,56.39550812,144.5,144.42,77.61994266]
[1745331386164,38.99550812,144.48,144.43,38.99550812]
[1745331386463,17.4,144.5,144.45,38.99550812]
[1745331386667,17.4,144.5,144.48,38.99550812]
[1745331386880,237.56,144.52,144.49,38.99550812]
[1745331387053,237.56,144.52,144.51,38.99550812]
[1745331387253,237.56,144.52,144.45,77.61994266]
[1745331387254,276.55550812,144.52,144.45,77.61994266]